bitfinex-derivatives/quotes_ETHF0:USTF0_20240817
["timestamp","ask_amount","ask_price","bid_price","bid_amount"]
[1723881238642,0.00020349,2598.3,2598.2,14.2753399]
[1723881242848,0.00020349,2598.3,2598.2,11.0675399]
[1723881243040,0.00020349,2598.3,2598.2,14.2753399]
[1723881247557,0.37960349,2598.3,2598.2,14.2753399]
[1723881249153,0.37960349,2598.3,2598.2,6.24646795]
[1723881251352,0.48368371,2598.3,2598.2,6.24646795]
[1723881251759,0.48368371,2598.3,2598.2,3.03866795]
[1723881252056,0.37960349,2598.3,2598.2,3.03866795]
[1723881252257,0.4836783,2598.3,2598.2,3.03866795]
[1723881253954,0.37960349,2598.3,2598.2,3.03866795]
[1723881254158,0.48368422,2598.3,2598.2,3.03866795]
[1723881255358,0.48368422,2598.3,2598.2,4.96277495]
[1723881255561,0.48368422,2598.3,2598.2,6.82928423]
[1723881255854,0.48368422,2598.3,2598.2,5.32067495]
[1723881256059,0.48368422,2598.3,2598.2,6.82928423]
[1723881257454,0.48368422,2598.3,2598.2,5.32067495]
[1723881257961,0.48368422,2598.3,2598.2,10.03672707]
[1723881258361,0.48368422,2598.3,2598.2,8.52847495]
[1723881260161,0.48368422,2598.3,2598.2,8.52840798]
[1723881261366,0.48368422,2598.3,2598.2,10.54173652]
[1723881261767,0.37960349,2598.3,2598.2,10.54173652]
[1723881262060,0.48367203,2598.3,2598.2,10.54173652]
[1723881262460,0.48367219,2598.3,2598.2,10.54173652]
[1723881262866,0.49457219,2598.3,2598.2,10.54173652]
[1723881264370,0.49457189,2598.3,2598.2,10.54173652]
[1723881265267,0.49457189,2598.3,2598.2,8.52840798]
[1723881266266,0.49457801,2598.3,2598.2,8.52840798]
[1723881266564,0.49457801,2598.3,2598.2,10.54173652]
[1723881267557,0.49457801,2598.3,2598.2,7.33393652]
[1723881268163,0.49457801,2598.3,2598.2,10.54173652]
[1723881268464,0.49457801,2598.3,2598.2,7.33393652]
[1723881268666,0.49457801,2598.3,2598.2,10.54173652]
[1723881269271,0.49457801,2598.3,2598.2,8.61769649]
[1723881269470,0.49457801,2598.3,2598.2,7.33400196]
[1723881270169,0.49457801,2598.3,2598.2,10.54180196]
[1723881270471,0.39050349,2598.3,2598.2,10.54180196]
[1723881270677,0.49457404,2598.3,2598.2,14.39001283]
[1723881270969,0.49457404,2598.3,2598.2,10.54180196]
[1723881271159,2.00810299,2598.3,2598.2,10.54180196]
[1723881271670,0.49457404,2598.3,2598.2,10.54180196]
[1723881271871,0.49457404,2598.3,2598.2,14.39003266]
[1723881272072,0.49457404,2598.3,2598.2,10.54180196]
[1723881272266,0.49457404,2598.3,2598.2,14.39003266]
[1723881272472,0.49457404,2598.3,2598.2,10.54180196]
[1723881272775,0.49457404,2598.3,2598.2,14.39003266]
[1723881273874,0.49457404,2598.3,2598.2,14.38996262]
[1723881274075,2.00810299,2598.3,2598.2,8.52845666]
[1723881274271,2.00810299,2598.3,2598.2,10.03784323]
[1723881274469,0.49457404,2598.3,2598.2,10.03784323]
[1723881274676,0.49457404,2598.3,2598.2,8.52845666]
[1723881274677,1.90506931,2598.3,2598.2,8.52845666]
[1723881274870,2.00914264,2598.3,2598.2,8.52845666]
[1723881275177,1.90506931,2598.3,2598.2,8.52845666]
[1723881275368,2.00914983,2598.3,2598.2,8.52845666]
[1723881275676,2.00914983,2598.3,2598.2,10.03761324]
[1723881276172,2.00914983,2598.3,2598.2,6.82981324]
[1723881276368,1.90506931,2598.3,2598.2,6.82981324]
[1723881276568,2.00914975,2598.3,2598.2,6.82981324]
[1723881277568,2.00914975,2598.3,2598.2,5.32065666]
[1723881278571,2.00914975,2598.3,2598.2,5.32069299]
[1723881278775,1.90506931,2598.3,2598.2,5.32069299]
[1723881278976,2.00914357,2598.3,2598.2,5.32069299]
[1723881280879,2.00914357,2598.3,2598.2,6.82974733]
[1723881281769,2.00914357,2598.3,2598.2,5.32069299]
[1723881281969,2.00914357,2598.3,2598.2,6.8297636]
[1723881282673,2.00914357,2598.3,2598.2,7.33402153]
[1723881282976,2.00914357,2598.3,2598.2,5.40989649]
[1723881283178,2.00914357,2598.3,2598.2,7.33397872]
[1723881284382,1.99824357,2598.3,2598.2,7.33397872]
[1723881284579,1.99824357,2598.3,2598.2,5.32065018]
[1723881285573,1.99824357,2598.3,2598.2,7.33397872]
[1723881285769,1.99823823,2598.3,2598.2,7.33397872]
[1723881285975,1.99823823,2598.3,2598.2,5.32065018]
[1723881286176,1.99823823,2598.3,2598.2,7.33397872]
[1723881287490,1.89416931,2598.3,2598.2,7.33397872]
[1723881287686,1.99823923,2598.3,2598.2,7.33396909]
[1723881288072,1.89416931,2598.3,2598.2,7.33396909]
[1723881288374,1.99823796,2598.3,2598.2,7.33396909]
[1723881288782,1.99823796,2598.3,2598.2,10.54176909]
[1723881289687,0.48367214,2598.3,2598.2,10.54176909]
[1723881290678,1.99823796,2598.3,2598.2,10.54176909]
[1723881291884,1.89416931,2598.3,2598.2,10.54175929]
[1723881292185,1.99823766,2598.3,2598.2,10.54175929]
[1723881293376,0.48367184,2598.3,2598.2,14.38988259]
[1723881294886,0.48367184,2598.3,2598.2,11.18208259]
[1723881295187,0.48367184,2598.3,2598.2,14.38988259]
[1723881296287,0.48366188,2598.3,2598.2,14.38988259]
[1723881296587,0.48366188,2598.3,2598.2,10.54175929]
[1723881296588,1.9982277,2598.3,2598.2,10.54175929]
[1723881296784,0.48366188,2598.3,2598.2,8.61769649]
[1723881296985,0.48366188,2598.3,2598.2,10.54173762]
[1723881297184,1.9982277,2598.3,2598.2,10.54173762]
[1723881297582,1.9982277,2598.3,2598.2,7.33393762]
[1723881297784,1.9982277,2598.3,2598.2,10.54173762]
[1723881300093,0.48366188,2598.3,2598.2,10.54173762]
[1723881300289,0.48366188,2598.3,2598.2,14.3898321]
[1723881300488,0.49456188,2598.3,2598.2,14.3898321]
[1723881300692,0.49456556,2598.3,2598.2,14.3898321]
[1723881300993,0.49456556,2598.3,2598.2,12.37634381]
[1723881301190,0.49456399,2598.3,2598.2,12.37634381]
[1723881302880,0.49456399,2598.3,2598.2,9.16854381]
[1723881303085,0.49456399,2598.3,2598.2,12.37634381]
[1723881304190,0.02576447,2598.3,2598.2,12.75214381]
[1723881304697,0.02576447,2598.3,2598.2,12.75210117]
[1723881304993,0.352,2598.4,2598.3,1.92388]
[1723881305294,1.86941267,2598.4,2598.3,7.05565774]
[1723881305497,0.35484685,2598.4,2598.3,9.06649406]
[1723881306488,0.35484685,2598.4,2598.3,7.05565774]
[1723881307189,1.86941267,2598.4,2598.3,7.05565774]
[1723881307988,1.86941267,2598.4,2598.3,3.84785774]
[1723881308283,1.86941267,2598.4,2598.3,7.05565774]
[1723881309292,0.35484685,2598.4,2598.3,7.05565774]
[1723881311491,0.35484685,2598.4,2598.3,8.56403941]
[1723881311492,1.86941267,2598.4,2598.3,8.56403941]
[1723881311691,1.86941267,2598.4,2598.3,7.05565774]
[1723881311692,0.35484685,2598.4,2598.3,7.05565774]
[1723881311897,0.35484685,2598.4,2598.3,5.13177774]
[1723881312196,4.29654072,2598.4,2598.3,3.2078]
[1723881312402,9.49505952,2598.4,2598.3,3.2078]
[1723881313297,8.38505952,2598.4,2598.3,3.2078]
[1723881314395,8.38505952,2598.4,2598.3,6.24194773]
[1723881314396,2.27865685,2598.4,2598.3,6.24194773]
[1723881314995,2.27865685,2598.4,2598.3,4.3178]
[1723881315195,2.27865685,2598.4,2598.3,6.24195303]
[1723881316301,2.38265021,2598.4,2598.3,6.24195303]
[1723881316496,2.38265021,2598.4,2598.3,3.03415303]
[1723881316692,1.97281918,2598.4,2598.3,4.5425347]
[1723881317092,1.97281918,2598.4,2598.3,3.03415303]
[1723881317093,2.47672408,2598.4,2598.3,3.03415303]
[1723881317292,2.47672408,2598.4,2598.3,1.11]
[1723881317503,0.45884021,2598.4,2598.3,3.03417402]
[1723881317897,0.45884021,2598.4,2598.3,1.11]
[1723881319697,1.97285152,2598.4,2598.3,4.54257383]
[1723881320095,1.86885816,2598.4,2598.3,6.46645383]
[1723881320297,1.62085042,2598.4,2598.3,6.46645383]
[1723881320501,0.10683911,2598.4,2598.3,4.95807216]
[1723881322294,0.10683911,2598.4,2598.3,10.81690988]
[1723881323392,0.10683911,2598.4,2598.3,11.12141903]
[1723881324306,0.00284685,2598.4,2598.3,11.12141903]
[1723881324796,0.10681868,2598.4,2598.3,11.12141903]
[1723881325205,0.10681868,2598.4,2598.3,14.32921903]
[1723881327304,0.10681868,2598.4,2598.3,14.32881689]
[1723881327497,0.10681868,2598.4,2598.3,14.02430774]
[1723881327695,0.46281868,2598.4,2598.3,10.17644679]
[1723881328599,0.46282375,2598.4,2598.3,10.17644679]
[1723881328804,0.46282375,2598.4,2598.3,6.96864679]
[1723881329001,0.46282375,2598.4,2598.3,10.17644679]
[1723881329196,0.46282375,2598.4,2598.3,8.16561047]
[1723881330004,0.46282375,2598.4,2598.3,4.95781047]
[1723881330204,0.46282375,2598.4,2598.3,8.16561047]
[1723881333698,0.46282375,2598.4,2598.3,4.95781047]
[1723881334703,0.46282375,2598.4,2598.3,8.16561047]
[1723881335613,0.46282375,2598.4,2598.3,4.95781047]
[1723881335811,0.46282375,2598.4,2598.3,8.16561047]
[1723881336213,0.46282375,2598.4,2598.3,4.95781047]
[1723881336509,0.46282375,2598.4,2598.3,4.95787741]
[1723881336709,0.36974685,2598.4,2598.3,8.16567741]
[1723881336907,0.47372647,2598.4,2598.3,8.16567741]
[1723881337304,0.11772361,2598.4,2598.3,8.16567741]
[1723881337611,0.11772361,2598.4,2598.3,10.17651373]
[1723881339104,0.11772482,2598.4,2598.3,10.17651373]
[1723881340311,0.11772482,2598.4,2598.3,8.16567741]
[1723881340711,0.11772482,2598.4,2598.3,4.95787741]
[1723881340907,0.11772482,2598.4,2598.3,8.16567741]
[1723881341107,0.11772711,2598.4,2598.3,8.16568336]
[1723881342305,0.11772711,2598.4,2598.3,10.17651968]
[1723881342812,0.11772711,2598.4,2598.3,8.16568336]
[1723881345411,0.11772763,2598.4,2598.3,8.16568336]
[1723881345717,0.11772763,2598.4,2598.3,8.16568815]
[1723881347009,0.11772763,2598.4,2598.3,4.95788815]
[1723881347215,0.11772763,2598.4,2598.3,5.13180815]
[1723881347517,2.04153763,2598.4,2598.3,7.75067173]
[1723881350317,0.11772763,2598.4,2598.3,7.75076844]
[1723881350519,2.04153763,2598.4,2598.3,7.75076844]
[1723881351415,0.11772763,2598.4,2598.3,6.24190486]
[1723881351720,0.11772763,2598.4,2598.3,7.75084834]
[1723881352220,0.11772763,2598.4,2598.3,7.75082546]
[1723881352611,2.04153763,2598.4,2598.3,7.75082546]
[1723881352915,0.11772763,2598.4,2598.3,7.75082546]
[1723881353618,0.11774139,2598.4,2598.3,7.75082546]
[1723881354519,0.11774139,2598.4,2598.3,4.54302546]
[1723881354714,0.11774139,2598.4,2598.3,4.54306925]
[1723881356719,0.10684139,2598.4,2598.3,4.54306925]
[1723881359413,0.10684139,2598.4,2598.3,4.54304304]
[1723881360229,0.10684139,2598.4,2598.3,3.03409956]
[1723881360628,1.6208527,2598.4,2598.3,4.54371475]
[1723881360933,1.51685816,2598.4,2598.3,4.54371475]
[1723881361134,1.62085181,2598.4,2598.3,4.54371475]
[1723881362529,1.62085181,2598.4,2598.3,2.61961519]
[1723881362730,1.62085181,2598.4,2598.3,4.54374819]
[1723881362932,1.62085406,2598.4,2598.3,4.54374819]
[1723881363835,0.10684275,2598.4,2598.3,4.04074947]
[1723881364436,0.10684275,2598.4,2598.3,4.04074355]
[1723881365232,0.10684275,2598.4,2598.3,4.0407878]
[1723881366535,0.00284685,2598.4,2598.3,4.0407878]
[1723881366733,0.10684854,2598.4,2598.3,4.0407878]
[1723881367239,0.10684854,2598.4,2598.3,4.04085284]
[1723881367442,0.10684854,2598.4,2598.3,5.96473284]
[1723881367743,1.62080329,2598.4,2598.3,6.46769323]
[1723881368941,0.10684854,2598.4,2598.3,4.95807804]
[1723881369239,0.106825,2598.4,2598.3,4.95807804]
[1723881369640,1.62077975,2598.4,2598.3,6.46770884]
[1723881371944,1.62077975,2598.4,2598.3,6.46758579]
[1723881373248,1.62079306,2598.4,2598.3,6.46758579]
[1723881374045,1.62079187,2598.4,2598.3,6.46758579]
[1723881376238,1.62079187,2598.4,2598.3,6.4676129]
[1723881376740,1.63169187,2598.4,2598.3,6.4676129]
[1723881377646,1.63169155,2598.4,2598.3,6.4676129]
[1723881377950,0.1177368,2598.4,2598.3,4.9579821]
[1723881378834,1.63169155,2598.4,2598.3,4.9579821]
[1723881379047,1.63169155,2598.4,2598.3,6.46727992]
[1723881379344,1.63169155,2598.4,2598.3,4.9579821]
[1723881379941,1.08735712,2598.7,2598.4,3.8488]
[1723881380248,2.52235484,2599.0,2598.9,1.92344]
[1723881380249,1.08735712,2599.0,2598.9,1.92344]
[1723881380449,0.3547,2599.1,2598.9,6.46498063]
[1723881380649,0.3547,2599.1,2599.0,1.00495785]
[1723881380846,0.3547,2599.1,2599.0,1.36685785]
[1723881381037,0.35958832,2599.1,2599.0,1.36685785]
[1723881382347,0.35958832,2599.1,2599.0,0.3619]
[1723881389748,0.35958832,2599.1,2598.9,3.03344]
[1723881389948,0.3677,2599.0,2598.9,3.37644]
[1723881397051,0.35958832,2599.1,2599.0,1.92337]
[1723881398249,0.00488832,2599.1,2599.0,1.92337]
[1723881401855,0.00488832,2599.1,2599.0,2.23537]
[1723881404562,0.00488832,2599.1,2599.0,1.92337]
[1723881405665,0.00488832,2599.1,2599.0,5.13117]
[1723881406055,0.00488832,2599.1,2599.0,1.92337]
[1723881406253,0.00488832,2599.1,2599.0,5.13117]
[1723881407865,0.00488832,2599.1,2599.0,1.92337]
[1723881408362,0.00488832,2599.1,2599.0,5.13117]
[1723881411975,0.35228832,2599.1,2599.0,5.13117]
[1723881413177,0.36318832,2599.1,2599.0,5.13117]
[1723881413671,0.36318832,2599.1,2599.0,6.24117]
[1723881414778,0.36318832,2599.1,2599.0,3.03337]
[1723881415170,0.36318832,2599.1,2599.0,6.24117]
[1723881416783,0.36318832,2599.1,2599.0,3.03337]
[1723881417277,0.36318832,2599.1,2599.0,6.24117]
[1723881417472,0.36318832,2599.1,2599.0,3.03337]
[1723881417881,0.36318832,2599.1,2599.0,6.24117]
[1723881418375,0.46701719,2599.1,2599.0,6.24117]
[1723881421682,0.46701719,2599.1,2599.0,3.03337]
[1723881423280,0.11961719,2599.1,2599.0,14.256033]
[1723881423577,0.11961719,2599.1,2599.0,15.44651368]
[1723881423776,0.11961719,2599.1,2599.0,13.93907515]
[1723881423975,0.01578832,2599.1,2599.0,13.93907515]
[1723881424382,0.11959343,2599.1,2599.0,15.95013558]
[1723881424681,0.11959343,2599.1,2599.0,56.75013558]
[1723881424883,0.01578832,2599.1,2599.0,60.59665233]
[1723881425079,0.01578832,2599.1,2599.0,65.59665233]
[1723881425283,0.11958186,2599.1,2599.0,63.5855919]
[1723881425586,0.00577212,2599.3,2599.2,1.92323]
[1723881425776,0.00577212,2599.3,2599.2,12.01101256]
[1723881426081,0.00577212,2599.3,2599.2,25.17495795]
[1723881426386,0.00577212,2599.3,2599.2,28.03184994]
[1723881426583,0.01036631,2599.3,2599.2,24.1851949]
[1723881426877,0.01036631,2599.3,2599.2,28.03184994]
[1723881427084,0.01036631,2599.3,2599.2,24.1851949]
[1723881427282,0.01036631,2599.3,2599.2,28.03184994]
[1723881427581,0.01036631,2599.3,2599.2,24.1851949]
[1723881427784,0.01036631,2599.3,2599.2,28.03184994]
[1723881428085,0.01036631,2599.3,2599.2,24.3747864]
[1723881428287,0.01036631,2599.3,2599.2,21.86809441]
[1723881429181,0.7147,2599.9,2599.8,1.92278]
[1723881429486,0.7147,2599.9,2599.8,6.24058]
[1723881429487,0.8184586,2599.9,2599.8,6.24058]
[1723881429984,0.8184586,2599.9,2599.8,6.59418]
[1723881430180,0.82134996,2599.9,2599.8,6.59418]
[1723881432886,0.82134996,2599.9,2599.8,3.38638]
[1723881433286,0.82134694,2599.9,2599.8,6.59418]
[1723881433783,0.82134694,2599.9,2599.8,3.5614]
[1723881433977,0.82134694,2599.9,2599.8,4.3178]
[1723881435477,0.71759136,2599.9,2599.8,3.03278]
[1723881436489,0.71759136,2599.9,2599.8,6.24058]
[1723881439193,0.37289136,2599.9,2599.8,6.24058]
[1723881441593,0.37289136,2599.9,2599.8,6.5424043]
[1723881447988,0.37289136,2599.9,2599.8,6.24058]
[1723881449688,0.38379136,2599.9,2599.8,6.24058]
[1723881450295,0.38379136,2599.9,2599.8,6.60138]
[1723881450792,0.38379136,2599.9,2599.8,3.39358]
[1723881450994,0.38379136,2599.9,2599.8,6.60138]
[1723881451585,0.38379136,2599.9,2599.8,6.97558]
[1723881451790,0.01379136,2599.9,2599.8,6.97558]
[1723881451995,0.00071363,2599.9,2599.8,6.97558]
[1723881452897,0.00408457,2599.9,2599.8,6.97558]
[1723881453994,0.00408457,2599.9,2599.8,3.76778]
[1723881454195,0.00408457,2599.9,2599.8,6.97558]
[1723881459898,0.00408457,2599.9,2599.8,7.97719584]
[1723881460096,0.00408457,2599.9,2599.8,6.97558]
[1723881460600,0.00408457,2599.9,2599.8,7.97719584]
[1723881460901,0.00408457,2599.9,2599.8,6.97558]
[1723881461601,0.00408457,2599.9,2599.8,7.97719584]
[1723881462001,0.00408457,2599.9,2599.8,6.97558]
[1723881463504,0.00408457,2599.9,2599.8,7.97719584]
[1723881463802,0.00408457,2599.9,2599.8,6.97558]
[1723881464396,0.00408457,2599.9,2599.8,7.97719584]
[1723881464599,0.00408457,2599.9,2599.8,4.76939584]
[1723881465292,5.77319457,2599.9,2599.8,3.2078]
[1723881465493,1.92278,2599.8,2599.7,1.11]
[1723881465697,3.10875854,2599.8,2599.7,1.11]
[1723881466095,1.18597854,2599.8,2599.7,1.11]
[1723881467805,1.0822,2599.8,2599.7,1.11]
[1723881468493,1.18596785,2599.8,2599.7,1.11]
[1723881469507,1.18596785,2599.8,2599.7,4.03446584]
[1723881469800,1.0822,2599.8,2599.7,6.33592554]
[1723881470005,1.0822,2599.8,2599.7,6.83774428]
[1723881470201,0.35,2599.8,2599.7,6.83774428]
[1723881470402,0.45374977,2599.8,2599.7,10.87137258]
[1723881470608,0.35,2599.8,2599.7,10.87137258]
[1723881470795,0.35,2599.8,2599.7,9.36894882]
[1723881470999,0.35,2599.8,2599.7,10.87032155]
[1723881471205,0.35,2599.8,2599.7,9.36894882]
[1723881472105,0.45374586,2599.8,2599.7,10.87076135]
[1723881472306,0.45374586,2599.8,2599.7,9.36894882]
[1723881472509,0.45374586,2599.8,2599.7,9.36900416]
[1723881473602,0.35,2599.8,2599.7,11.37223584]
[1723881473805,0.35,2599.8,2599.7,9.36900416]
[1723881474006,0.45374758,2599.8,2599.7,9.36900416]
[1723881474309,0.45374758,2599.8,2599.7,4.4132283]
[1723881474612,0.45374758,2599.8,2599.7,10.87141721]
[1723881475509,0.35,2599.8,2599.7,10.87141721]
[1723881475710,0.45376395,2599.8,2599.7,10.87141721]
[1723881475905,0.45376395,2599.8,2599.7,9.36911117]
[1723881476411,0.4537594,2599.8,2599.7,14.07954781]
[1723881476918,0.4537594,2599.8,2599.7,14.58014285]
[1723881477511,0.45375093,2599.8,2599.7,12.57691117]
[1723881478210,0.45375093,2599.8,2599.7,9.36911117]
[1723881478403,0.45375093,2599.8,2599.7,14.58014285]
[1723881478598,0.10375093,2599.8,2599.7,18.42654285]
[1723881478803,0.00337094,2599.9,2599.8,1.92283]
[1723881479000,0.10711202,2599.9,2599.8,5.84889568]
[1723881479305,0.10711038,2599.9,2599.8,13.92942142]
[1723881479807,0.00337094,2599.9,2599.8,13.92942142]
[1723881480110,0.00337094,2599.9,2599.8,15.77185774]
[1723881480510,0.00337094,2599.9,2599.8,13.92933793]
[1723881481101,0.00337094,2599.9,2599.8,15.77185774]
[1723881481305,0.00337094,2599.9,2599.8,13.92936738]
[1723881481503,0.00337094,2599.9,2599.8,15.77185774]
[1723881482009,0.00337094,2599.9,2599.8,15.77153413]
[1723881482210,0.00337094,2599.9,2599.8,13.92923931]
[1723881483612,0.00337094,2599.9,2599.8,15.77153413]
[1723881484504,0.00337094,2599.9,2599.8,17.77484854]
[1723881484711,0.00337094,2599.9,2599.8,15.77153413]
[1723881485013,0.00337094,2599.9,2599.8,13.92973168]
[1723881486213,0.01427094,2599.9,2599.8,13.92973168]
[1723881486613,0.11800994,2599.9,2599.8,13.92980379]
[1723881486908,0.01427094,2599.9,2599.8,13.92980379]
[1723881488307,0.01427094,2599.9,2599.8,17.13760379]
[1723881490610,0.1180102,2599.9,2599.8,17.13760379]
[1723881490809,0.1180102,2599.9,2599.8,13.29120379]
[1723881491220,0.1180102,2599.9,2599.8,13.29132076]
[1723881491423,0.01427094,2599.9,2599.8,13.29132076]
[1723881495711,0.01427094,2599.9,2599.8,13.2911803]
[1723881495913,0.01427094,2599.9,2599.8,10.0833803]
[1723881496219,0.01427094,2599.9,2599.8,13.2911803]
[1723881498221,0.01427094,2599.9,2599.8,11.28753049]
[1723881498611,0.01427094,2599.9,2599.8,13.29035399]
[1723881498813,0.01427094,2599.9,2599.8,11.28753049]
[1723881499214,0.01427094,2599.9,2599.8,13.2902941]
[1723881500623,0.01427094,2599.9,2599.8,10.0824941]
[1723881500822,0.01427094,2599.9,2599.8,13.2902941]
[1723881503523,0.11801038,2599.9,2599.8,13.2902941]
[1723881504619,0.11801439,2599.9,2599.8,13.2902941]
[1723881505926,0.11801439,2599.9,2599.8,11.28753049]
[1723881506119,0.10711439,2599.9,2599.8,11.28753049]
[1723881508415,0.10711439,2599.9,2599.8,13.2902941]
[1723881508830,0.10711439,2599.9,2599.8,11.28753049]
[1723881509211,0.10711433,2599.9,2599.8,11.28753049]
[1723881509416,0.10711433,2599.9,2599.8,11.28759698]
[1723881509926,0.10711433,2599.9,2599.8,8.07979698]
[1723881510119,0.10711433,2599.9,2599.8,11.28759698]
[1723881510625,0.00337094,2599.9,2599.8,13.29036059]
[1723881511833,0.00017444,2599.9,2599.8,13.65986059]
[1723881512518,0.1039167,2599.9,2599.8,13.65986059]
[1723881513114,0.1039167,2599.9,2599.8,17.50554307]
[1723881513725,0.00017444,2599.9,2599.8,17.50554307]
[1723881513916,0.10391874,2599.9,2599.8,14.29774307]
[1723881514122,0.10391874,2599.9,2599.8,17.50554023]
[1723881514321,0.00017444,2599.9,2599.8,17.50554023]
[1723881514522,0.10391783,2599.9,2599.8,17.50554023]
[1723881514721,0.10391783,2599.9,2599.8,15.50277662]
[1723881515026,0.10391783,2599.9,2599.8,17.5071985]
[1723881515328,0.10391783,2599.9,2599.8,17.50745926]
[1723881515621,0.10391681,2599.9,2599.8,17.50745926]
[1723881517430,0.10391681,2599.9,2599.8,17.50746973]
[1723881518427,0.10391869,2599.9,2599.8,17.50746973]
[1723881518630,0.10391869,2599.9,2599.8,14.29969286]
[1723881518824,0.10391869,2599.9,2599.8,17.50749286]
[1723881519027,0.10391869,2599.9,2599.8,14.29969286]
[1723881519226,0.10391869,2599.9,2599.8,15.50279975]
[1723881519828,0.10391868,2599.9,2599.8,12.29499975]
[1723881520223,0.10391868,2599.9,2599.8,15.50279975]
[1723881523228,0.10392038,2599.9,2599.8,15.50279975]
[1723881524239,0.11482038,2599.9,2599.8,15.50279975]
[1723881524632,0.11482038,2599.9,2599.8,18.00949174]
[1723881527738,0.01107444,2599.9,2599.8,18.00949954]
[1723881527932,0.11481896,2599.9,2599.8,18.00949954]
[1723881528237,0.01107444,2599.9,2599.8,18.00949954]
[1723881528424,0.11481903,2599.9,2599.8,18.00949954]
[1723881528932,0.11481903,2599.9,2599.8,15.50280755]
[1723881530332,0.11481903,2599.9,2599.8,18.00949954]
[1723881530733,0.11481903,2599.9,2599.8,23.77872954]
[1723881530933,0.36023354,2600.1,2600.0,1.92268]
[1723881531135,0.46395192,2600.1,2600.0,11.30746611]
[1723881531341,0.46395192,2600.1,2600.0,15.32036055]
[1723881531937,0.46674234,2600.1,2600.0,15.32036055]
[1723881532340,0.36302396,2600.1,2600.0,15.31954059]
[1723881532637,0.46662821,2600.1,2600.0,15.31954059]
[1723881533339,0.36302396,2600.1,2600.0,15.31954059]
[1723881534336,0.36302396,2600.1,2600.0,14.20954059]
[1723881534337,0.46663791,2600.1,2600.0,14.20954059]
[1723881534538,0.46663791,2600.1,2600.0,14.81769288]
[1723881534742,0.46663791,2600.1,2600.0,14.81797565]
[1723881535038,0.46663791,2600.1,2600.0,8.96815172]
[1723881535238,0.46663791,2600.1,2600.0,5.93547172]
[1723881535427,0.46663791,2600.1,2600.0,8.96815172]
[1723881535831,0.36302396,2600.1,2600.0,10.97253831]
[1723881536032,0.46664964,2600.1,2600.0,10.97253831]
[1723881536236,0.46664964,2600.1,2600.0,8.96815172]
[1723881536428,0.46664964,2600.1,2600.0,10.97253831]
[1723881536835,0.46664964,2600.1,2600.0,8.96836961]
[1723881537043,0.46664964,2600.1,2600.0,10.9727562]
[1723881537348,0.46664964,2600.1,2600.0,11.3305562]
[1723881539045,0.46664964,2600.1,2600.0,15.17614655]
[1723881539244,0.46664964,2600.1,2600.0,11.3305562]
[1723881539444,0.46664964,2600.1,2600.0,15.17614655]
[1723881540745,0.4666481,2600.1,2600.0,11.3305562]
[1723881540937,0.4666481,2600.1,2600.0,11.33046633]
[1723881541138,0.4666481,2600.1,2600.0,15.17587693]
[1723881541344,0.4666481,2600.1,2600.0,13.17149034]
[1723881541544,0.46662979,2600.1,2600.0,13.52149034]
[1723881542045,0.36302396,2600.1,2600.0,19.87412464]
[1723881544246,0.36302396,2600.1,2600.0,17.36789034]
[1723881544447,0.36302396,2600.1,2600.0,15.52574481]
[1723881544742,0.36302396,2600.1,2600.0,19.37094617]
[1723881545050,0.36302396,2600.1,2600.0,18.73234617]
[1723881545735,0.36302396,2600.1,2600.0,22.57874617]
[1723881545936,0.36302396,2600.1,2600.0,20.5754811]
[1723881546146,0.36302396,2600.1,2600.0,16.7290811]
[1723881546339,0.36302396,2600.1,2600.0,20.5754811]
[1723881546545,0.36302396,2600.1,2600.0,16.7290811]
[1723881546740,0.36302396,2600.1,2600.0,18.73231778]
[1723881547140,0.36302396,2600.1,2600.0,14.88704667]
[1723881547942,0.36302396,2600.1,2600.0,18.73231778]
[1723881548345,0.36302396,2600.1,2600.0,20.5754811]
[1723881549246,0.36302396,2600.1,2600.0,20.57528141]
[1723881549640,0.00852396,2600.1,2600.0,23.08151571]
[1723881549844,0.00029411,2600.1,2600.0,23.08151571]
[1723881550048,0.00029411,2600.1,2600.0,25.00419571]
[1723881550254,0.3627,2600.4,2600.3,1.92246]
[1723881550551,0.3627,2600.4,2600.3,11.38683383]
[1723881550751,0.3627,2600.4,2600.3,14.49927298]
[1723881550944,0.3627,2600.4,2600.3,14.87697298]
[1723881551145,0.36625594,2600.4,2600.3,14.88055832]
[1723881551649,0.36625594,2600.4,2600.3,12.87811917]
[1723881553749,0.36625594,2600.4,2600.3,14.88040994]
[1723881554148,0.36625594,2600.4,2600.3,12.87797079]
[1723881554343,0.36625594,2600.4,2600.3,13.17844802]
[1723881554542,0.36625594,2600.4,2600.3,15.18088717]
[1723881555348,0.36625594,2600.4,2600.3,13.17844802]
[1723881555959,0.36625594,2600.4,2600.3,15.18088717]
[1723881556448,0.36625594,2600.4,2600.3,13.17844802]
[1723881556645,0.36625594,2600.4,2600.3,15.18088717]
[1723881557042,0.36625594,2600.4,2600.3,19.02648717]
[1723881557455,0.36625594,2600.4,2600.3,22.87108007]
[1723881557754,0.36625594,2600.4,2600.3,22.87106987]
[1723881558261,0.36625594,2600.4,2600.3,19.02648717]
[1723881559251,0.36625594,2600.4,2600.3,14.07088717]
[1723881559458,0.36625594,2600.4,2600.3,11.4718388]
[1723881559650,0.36625594,2600.4,2600.3,14.6796388]
[1723881560557,0.36625594,2600.4,2600.3,13.17850145]
[1723881560759,0.37715594,2600.4,2600.3,13.17850145]
[1723881562056,0.37715594,2600.4,2600.3,15.1809406]
[1723881562259,0.37715594,2600.4,2600.3,13.17850145]
[1723881562457,0.37715594,2600.4,2600.3,13.1783735]
[1723881565354,0.37715594,2600.4,2600.3,14.67899419]
[1723881566154,0.37715594,2600.4,2600.3,13.1783735]
[1723881566850,0.37715594,2600.4,2600.3,11.25602741]
[1723881567056,0.37715594,2600.4,2600.3,15.18084972]
[1723881567255,0.37715594,2600.4,2600.3,13.17841057]
[1723881567457,0.37715594,2600.4,2600.3,14.67921637]
[1723881569155,0.37715594,2600.4,2600.3,13.17841057]
[1723881569367,0.37715594,2600.4,2600.3,14.67908801]
[1723881569865,0.37715594,2600.4,2600.3,14.30138801]
[1723881570067,0.75115594,2600.4,2600.3,14.30138801]
[1723881570966,0.75115594,2600.4,2600.3,11.57842307]
[1723881571162,0.75115594,2600.4,2600.3,12.50023334]
[1723881571361,0.75115594,2600.4,2600.3,14.00104402]
[1723881571967,0.1744097,2600.4,2600.3,14.00104402]
[1723881572872,0.17901556,2600.4,2600.3,14.00104402]
[1723881573260,0.17901556,2600.4,2600.3,14.30481548]
[1723881574561,0.17901556,2600.4,2600.3,11.09701548]
[1723881574766,0.17901556,2600.4,2600.3,14.30481548]
[1723881575162,0.53301556,2600.4,2600.3,12.80413804]
[1723881575973,0.53301556,2600.4,2600.3,12.80407341]
[1723881576672,0.53301556,2600.4,2600.3,9.59627341]
[1723881576975,0.53301556,2600.4,2600.3,11.69407341]
[1723881577274,0.53301556,2600.4,2600.3,12.80407341]
[1723881577971,0.53301556,2600.4,2600.3,14.30576024]
[1723881578167,0.53301556,2600.4,2600.3,12.38330024]